fUSD/lending_fUSD_20240416
["ID","MTS","AMOUNT","RATE_DAILY","PERIOD"]
[322749583,1713240632989,-150.0,0.00019918,2]
[322749584,1713240633000,-150.0,0.00019918,2]
[322749585,1713240633009,-150.0,0.00019918,2]
[322749586,1713240633019,-521.47,0.00019978,2]
[322749587,1713240633029,-162.56,0.00019978,2]
[322749588,1713240633039,-150.0,0.00019978,2]
[322749589,1713240633048,-150.0,0.00019978,2]
[322749590,1713240633058,-150.0,0.00019978,2]
[322749591,1713240633068,-350.05,0.00019978,2]
[322749592,1713240633078,-418.65,0.00019978,2]
[322749593,1713240633088,-23229.3139195,0.0002,2]
[322749594,1713240633097,-150.0,0.0002,2]
[322749595,1713240633107,-521.47,0.0002,2]
[322749596,1713240633116,-348.81,0.0002,2]
[322749597,1713240633126,-150.0,0.00020052,2]
[322749598,1713240633136,-10000.0,0.00020085,2]
[322749599,1713240633147,-521.47,0.000201,2]
[322749600,1713240633156,-150.0,0.000201,2]
[322749601,1713240633166,-350.05,0.000201,2]
[322749602,1713240633176,-150.0,0.00020164,2]
[322749603,1713240633186,-521.47,0.00020178,2]
[322749604,1713240633196,-150.0,0.00020178,2]
[322749605,1713240633205,-350.05,0.00020178,2]
[322749606,1713240633215,-150.0,0.00020178,2]
[322749607,1713240633224,-162.56,0.00020178,2]
[322749608,1713240633235,-418.65,0.00020178,2]
[322749609,1713240633244,-418.65,0.00020192,2]
[322749610,1713240633256,-340.98,0.00020192,2]
[322749611,1713240633265,-162.56,0.00020192,2]
[322749612,1713240633275,-162.56,0.00020192,2]
[322749613,1713240633285,-418.65,0.00020192,2]
[322749614,1713240633295,-418.65,0.00020192,2]
[322749615,1713240633304,-350.05,0.00020192,2]
[322749616,1713240633313,-162.56,0.00020192,2]
[322749617,1713240633323,-350.05,0.00020192,2]
[322749618,1713240633332,-521.47,0.00020192,2]
[322749619,1713240633341,-418.65,0.00020192,2]
[322749620,1713240633351,-418.65,0.00020192,2]
[322749621,1713240633361,-521.47,0.00020192,2]
[322749622,1713240633370,-350.05,0.00020192,2]
[322749623,1713240633380,-418.65,0.00020192,2]
[322749624,1713240633389,-521.47,0.00020192,2]
[322749625,1713240633403,-348.81,0.00020192,2]
[322749626,1713240633412,-418.65,0.00020192,2]
[322749627,1713240633421,-521.47,0.00020192,2]
[322749628,1713240633430,-150.0,0.00020192,2]
[322749629,1713240633439,-521.47,0.00020192,2]
[322749630,1713240633448,-150.0,0.00020192,2]
[322749631,1713240633458,-418.65,0.00020192,2]
[322749632,1713240633468,-418.65,0.00020192,2]
[322749633,1713240633477,-521.47,0.00020192,2]
[322749634,1713240633488,-349.12,0.00020192,2]
[322749635,1713240633496,-418.65,0.00020192,2]
[322749636,1713240633506,-150.0,0.00020192,2]
[322749637,1713240633516,-521.47,0.00020192,2]
[322749638,1713240633525,-521.47,0.00020192,2]
[322749639,1713240633534,-418.65,0.00020192,2]
[322749640,1713240633543,-150.0,0.00020192,2]
[322749641,1713240633553,-150.0,0.00020192,2]
[322749642,1713240633562,-418.65,0.00020192,2]
[322749643,1713240633573,-418.65,0.00020192,2]
[322749644,1713240633582,-150.0,0.00020192,2]
[322749645,1713240633592,-418.65,0.00020192,2]
[322749646,1713240633601,-150.0,0.00020192,2]
[322749647,1713240633611,-418.65,0.00020192,2]
[322749648,1713240633620,-150.0,0.00020192,2]
[322749649,1713240633630,-418.65,0.00020192,2]
[322749650,1713240633639,-150.0,0.00020192,2]
[322749651,1713240633649,-418.65,0.00020192,2]
[322749652,1713240633658,-150.0,0.00020192,2]
[322749653,1713240633667,-150.0,0.00020192,2]
[322749654,1713240633677,-418.65,0.00020192,2]
[322749655,1713240633686,-418.65,0.00020192,2]
[322749656,1713240633695,-418.65,0.00020192,2]
[322749657,1713240633705,-418.65,0.00020192,2]
[322749658,1713240633714,-418.65,0.00020192,2]
[322749659,1713240633724,-203.57,0.00020192,2]
[322749660,1713240633733,-1255.50514041,0.00020208,2]
[322749661,1713240633743,-3681.3596,0.00020266,2]
[322749662,1713240633752,-1255.50514038,0.00020268,2]
[322749663,1713240633761,-2445.28893795,0.0002027,2]
[322749664,1713240633770,-5887.0,0.00020308,2]
[322749665,1713240633780,-5751.32,0.00020308,2]
[322749666,1713240633789,-2703.0,0.00020308,2]
[322749667,1713240633798,-37645.0,0.00020308,2]
[322749668,1713240633807,-1060.911,0.00020308,2]
[322749669,1713240633817,-1255.50514038,0.00020327,2]
[322749670,1713240633828,-2445.28893788,0.0002034,2]
[322749671,1713240633837,-500.0,0.0002037,2]
[322749672,1713240633847,-1000.0,0.00020383,2]
[322749673,1713240633856,-500.0,0.00020383,2]
[322749674,1713240633865,-1255.50514038,0.00020387,2]
[322749675,1713240633874,-156.11,0.00020394,2]
[322749676,1713240633884,-152.75,0.00020394,2]
[322749677,1713240633893,-159.47,0.00020394,2]
[322749678,1713240633902,-328.29,0.00020394,2]
[322749679,1713240633912,-705.22,0.00020394,2]
[322749680,1713240633922,-294.81,0.00020394,2]
[322749681,1713240633932,-418.65,0.000204,2]
[322749682,1713240633942,-2445.28893788,0.0002041,2]
[322749683,1713240633952,-2885.92330503,0.00020433,2]
[322749684,1713240633961,-154.45,0.00020437,2]
[322749685,1713240633971,-151.22474668,0.00020446,2]
[322749686,1713240633980,-2918.2623588,0.00020446,2]
[322749687,1713240633989,-1255.50514038,0.00020446,2]
[322749688,1713240633998,-207.9719,0.00020447,2]
[322749689,1713240634007,-43137.13725203,0.00020447,2]
[322749690,1713240634027,-2309.85,0.00020447,2]
[322749691,1713240634038,-705.76,0.00020447,2]
[322749717,1713240637806,-2353.97315179,0.00020085,2]
[322749718,1713240637818,-47231.84224797,0.00020447,2]
[322749719,1713240637843,-150.0,0.00020452,2]
[322749720,1713240637854,-150.0,0.00020466,2]
[322749721,1713240637866,-150.0,0.00020466,2]
[322749722,1713240637877,-150.0,0.00020466,2]
[322749723,1713240637888,-150.0,0.00020466,2]
[322749724,1713240637899,-150.0,0.00020466,2]
[322749725,1713240637911,-2445.28893788,0.0002048,2]
[322749726,1713240637922,-2918.2623588,0.00020487,2]
[322749727,1713240637933,-3002.0,0.000205,2]
[322749728,1713240637944,-150.0,0.000205,2]
[322749729,1713240637954,-150.0,0.000205,2]
[322749730,1713240637964,-2885.92330503,0.000205,2]
[322749731,1713240637976,-150.0,0.000205,2]
[322749732,1713240637988,-151.22474668,0.00020503,2]
[322749733,1713240638000,-2918.2623588,0.00020529,2]
[322749734,1713240638011,-154.45,0.00020536,2]
[322749735,1713240638021,-155.0,0.00020544,2]
[322749736,1713240638032,-234.75147604,0.00020544,2]
[322749737,1713240638042,-270.94792644,0.00020544,2]
[322749738,1713240638053,-2374.01275477,0.00020544,2]
[322749739,1713240638063,-619.08414125,0.00020544,2]
[322749740,1713240638073,-155.51813378,0.00020544,2]
[322749741,1713240638094,-865.39796139,0.00020544,2]
[322749742,1713240638104,-155.23224713,0.00020545,2]
[322749743,1713240638114,-44223.4836118,0.00020545,2]
[322749744,1713240638125,-4357.3349365,0.00020545,2]
[322749745,1713240638135,-473.3199678,0.00020545,2]
[322749746,1713240638145,-626.325402,0.00020545,2]
[322749747,1713240638155,-6385.356889,0.00020545,2]
[322749748,1713240638166,-879.0,0.00020546,2]
[322749749,1713240638176,-150.01,0.00020546,2]
[322749750,1713240638185,-554.98033,0.00020546,2]
[322749751,1713240638195,-905877.72583912,0.00020546,2]
[322749768,1713240638366,-1800.76100558,0.00020546,2]
[322749993,1713240640372,-1034.268095,0.00020546,2]
[322749996,1713240640404,-835.0063355,0.00020546,2]
[322749998,1713240640419,-3644.09578099,0.00020546,2]
[322750000,1713240640431,-946.28130316,0.00020546,2]
[322750146,1713240643024,-6310.0,0.00020546,2]
[322750147,1713240643293,-2817.16081926,0.00020546,2]
[322750148,1713240643305,-23575.7587305,0.00020546,2]
[322750151,1713240645845,-2450.9403,0.00020546,2]
[322750152,1713240646010,-2460.98823099,0.00020546,2]
[322750153,1713240646063,-3298.63961868,0.00020546,2]
[322750154,1713240646119,-6516.38830538,0.00020546,2]
[322750155,1713240871876,182.74,0.00017656,2]
[322750156,1713241107071,18070.71112095,0.00017656,2]
[322750157,1713241107722,2550.98871455,0.00013242,2]
[322750160,1713241337624,173.6,0.00017584,2]
[322750165,1713241749483,400.0,0.000179,6]
[322750168,1713241764209,155.0,0.00017999,2]
[322750169,1713241768948,3790.4269809,0.00017999,2]
[322750170,1713241769036,8897.30242736,0.00017999,2]
[322750171,1713241770537,1243.31092697,0.00017999,2]
[322750172,1713241771121,-900.0,0.00018,6]
[322750173,1713241771140,-1300.0,0.000181,6]
[322750174,1713241771159,-325.5189,0.000182,6]
[322750185,1713241831972,-659.47,0.00018195,2]
[322750186,1713241831990,-469.63521555,0.00018195,2]
[322750187,1713241832143,-643.59914021,0.00018195,2]
[322750188,1713241832160,-293.59699915,0.00018195,2]
[322750189,1713241832170,-722.2347365,0.00018196,2]
[322750190,1713241832182,-3050.92305154,0.00018196,2]
[322750191,1713241832191,-376.48214074,0.00018197,2]
[322750192,1713241832200,-950.54480772,0.00018197,2]
[322750193,1713241832212,-833.79793316,0.00018197,2]
[322750194,1713241832222,-299.66504719,0.00018197,2]
[322750195,1713241832271,-273.75778938,0.00018197,2]
[322750196,1713241832280,-35.55255109,0.00018197,2]
[322750197,1713241832291,-228.50720755,0.00018197,2]
[322750198,1713241832300,-155.0,0.00018197,2]
[322750199,1713241832310,-343.01364445,0.00018197,2]
[322750200,1713241832319,-419.37533825,0.00018198,2]
[322750201,1713241832328,-155.0,0.00018198,2]
[322750202,1713241832337,-10352.14205535,0.00018198,2]
[322750203,1713241832348,-341.48088377,0.00018198,2]
[322750204,1713241832367,-12636.77546852,0.00018198,2]
[322750205,1713241832376,-2353.28763213,0.00018199,2]
[322750206,1713241832385,-363.42483292,0.00018199,2]
[322750207,1713241832394,-1474.4811,0.000182,6]
[322750208,1713241832411,-2550.82524963,0.00018297,2]
[322750209,1713241832420,-150.0,0.00018298,2]
[322750210,1713241832429,-150.0,0.00018298,2]
[322750211,1713241832438,-11598.70571676,0.00018299,2]
[322750228,1713241833247,-1087.44355534,0.00018299,2]
[322750229,1713241833259,-253.92241788,0.00018299,2]
[322750230,1713241833286,-12376.84941022,0.00018299,2]
[322750231,1713241833297,-308.807424,0.00018299,2]
[322750232,1713241833308,-323991.35035378,0.00018299,2]
[322750233,1713241833320,-317.65,0.00018299,2]
[322750234,1713241833331,-1290.90309334,0.00018299,2]
[322750235,1713241833342,-6103.26445465,0.00018299,2]
[322750236,1713241835109,290.48007661,0.00017382,2]
[322750248,1713241838018,-17415.89340693,0.000182,2]
[322750249,1713241838180,-662.81214995,0.000182,2]
[322750250,1713241838191,-1534.63690515,0.000182,2]
[322750251,1713241838237,-3364.47521466,0.000182,2]
[322750252,1713241838247,-59272.06237866,0.00018299,2]
[322750253,1713241838296,-7076.96488765,0.00018299,2]
[322750254,1713241838352,-33857.00246845,0.00018299,2]
[322750257,1713241838370,-227421.32326033,0.00018299,2]
[322750259,1713241838379,-2200.0,0.000183,6]
[322750261,1713241838388,-2286.92,0.00018315,2]
[322750263,1713241838397,-2286.92,0.0001832,2]
[322750265,1713241838408,-2286.92,0.00018325,2]
[322750267,1713241838417,-2286.92,0.0001833,2]
[322750269,1713241838426,-2286.92,0.00018335,2]
[322750271,1713241838435,-2286.92,0.00018339,2]
[322750273,1713241838444,-2286.92,0.00018344,2]
[322750275,1713241838452,-2286.92,0.00018349,2]
[322750277,1713241838461,-2286.92,0.00018354,2]
[322750279,1713241838470,-2286.92,0.00018359,2]
[322750280,1713241838479,-2286.92,0.00018364,2]
[322750282,1713241838488,-2286.92,0.00018368,2]
[322750285,1713241838499,-2286.92,0.00018373,2]
[322750286,1713241838508,-2286.92,0.00018378,2]
[322750288,1713241838519,-2286.92,0.00018383,2]
[322750290,1713241838531,-2286.92,0.00018388,2]
[322750292,1713241838542,-2286.92,0.00018393,2]
[322750294,1713241838554,-2286.92,0.00018397,2]
[322750297,1713241838564,-400.0,0.000184,6]
[322750298,1713241838573,-2286.92,0.00018402,2]
[322750300,1713241838583,-2286.92,0.00018407,2]
[322750303,1713241838593,-400.0,0.000185,6]
[322750305,1713241838602,-3117.92207549,0.0001851,2]
[322750307,1713241838611,-400.0,0.000186,6]
[322750309,1713241838620,-400.0,0.000187,6]
[322750311,1713241838629,-853.0,0.000188,6]
[322750313,1713241838638,-233.68109349,0.00019,2]
[322750315,1713241838647,-23439.92,0.00019065,2]
[322750317,1713241838659,-1500.0,0.00019178,2]
[322750318,1713241838667,-362.37,0.0001918,2]
[322750320,1713241838676,-362.37,0.0001918,2]
[322750322,1713241838685,-362.37,0.0001918,2]
[322750324,1713241838694,-213.22955516,0.00019289,2]
[322750326,1713241838703,-499.99,0.00019289,2]
[322750328,1713241838713,-8415.34,0.00019289,2]
[322750330,1713241838722,-362.37,0.00019289,2]
[322750332,1713241838731,-20944.9132134,0.00019298,2]
[322750334,1713241838740,-2434.91,0.00019299,2]
[322750336,1713241838749,-800.0,0.0001937,2]
[322750338,1713241838758,-13566.04815404,0.00019386,2]
[322750340,1713241838767,-495.29588226,0.00019391,2]
[322750342,1713241838776,-3840.62154268,0.00019391,2]
[322750344,1713241838787,-6516.981734,0.00019391,2]
[322750346,1713241838795,-1075.67747944,0.00019391,2]
[322750348,1713241838804,-78293.4939976,0.00019391,2]
[322750350,1713241838813,-3780.5313931,0.00019391,2]
[322750352,1713241838822,-23476.85750491,0.00019391,2]
[322750354,1713241838832,-11709.46336309,0.00019391,2]
[322750356,1713241838841,-6858.44988242,0.00019391,2]
[322750358,1713241838850,-341.68026084,0.00019391,2]
[322750360,1713241838859,-800.0,0.00019452,2]
[322750362,1713241838868,-162.92,0.00019473,2]
[322750364,1713241838878,-362.37,0.00019475,2]
[322750366,1713241838886,-362.37,0.00019476,2]
[322750368,1713241838895,-362.37,0.00019476,2]
[322750370,1713241838907,-362.37,0.00019476,2]
[322750372,1713241838916,-362.37,0.00019476,2]
[322750374,1713241838926,-362.37,0.00019476,2]
[322750376,1713241838935,-404.33,0.00019476,3]
[322750378,1713241838945,-150.0,0.00019479,2]
[322750380,1713241838954,-150.0,0.00019479,2]
[322750382,1713241838965,-150.0,0.00019479,2]
[322750384,1713241838974,-155.51813378,0.00019484,2]
[322750386,1713241838983,-155.23224713,0.00019484,2]
[322750388,1713241838993,-234.75147604,0.00019484,2]
[322750390,1713241839002,-217.29508633,0.00019484,2]
[322750392,1713241839011,-619.08414125,0.00019484,2]
[322750394,1713241839023,-155.0,0.00019484,2]
[322750396,1713241839032,-155.8210919,0.00019484,2]
[322750398,1713241839041,-157.28664772,0.00019484,2]
[322750400,1713241839052,-155.86659337,0.00019484,2]
[322750402,1713241839062,-331.4330939,0.00019484,2]
[322750404,1713241839072,-200.79873813,0.00019484,2]
[322750406,1713241839081,-264.23544895,0.00019484,2]
[322750408,1713241839090,-222.79021237,0.00019484,2]
[322750411,1713241839099,-567.95813038,0.00019484,2]
[322750412,1713241839108,-194.55725768,0.00019484,2]
[322750414,1713241839117,-155.18409374,0.00019484,2]
[322750416,1713241839126,-239.18157609,0.00019484,2]
[322750418,1713241839135,-553.21837977,0.00019484,2]
[322750420,1713241839144,-155.55514414,0.00019484,2]
[322750423,1713241839156,-3389.95061067,0.00019484,2]
[322750425,1713241839166,-1761.6960607,0.00019484,2]
[322750427,1713241839175,-155.4107171,0.00019484,2]
[322750428,1713241839184,-363.99402287,0.00019484,2]
[322750431,1713241839197,-267.62497711,0.00019484,2]
[322750433,1713241839206,-227.18428342,0.00019484,2]
[322750435,1713241839215,-155.8559771,0.00019484,2]
[322750437,1713241839224,-210.70894877,0.00019484,2]
[322750439,1713241839234,-155.40183599,0.00019484,2]
[322750441,1713241839243,-155.67852494,0.00019484,2]
[322750443,1713241839252,-9625.6026739,0.00019484,2]
[322750445,1713241839261,-156.19334706,0.00019484,2]
[322750447,1713241839270,-200.46043924,0.00019484,2]
[322750449,1713241839279,-155.96289677,0.00019484,2]
[322750451,1713241839288,-155.45878747,0.00019484,2]
[322750453,1713241839297,-155.24966131,0.00019484,2]
[322750455,1713241839306,-202.93958409,0.00019484,2]
[322750457,1713241839315,-260.66640694,0.00019484,2]
[322750459,1713241839324,-190.99719088,0.00019484,2]
[322750461,1713241839333,-155.39326476,0.00019484,2]
[322750463,1713241839342,-155.56538191,0.00019484,2]
[322750466,1713241839352,-199.74257633,0.00019484,2]
[322750468,1713241839361,-286.61901291,0.00019484,2]
[322750470,1713241839370,-308.698414,0.00019484,2]
[322750472,1713241839378,-503.87779719,0.00019484,2]
[322750474,1713241839387,-180.82061113,0.00019484,2]
[322750476,1713241839396,-155.75880461,0.00019484,2]
[322750478,1713241839408,-359.92801929,0.00019484,2]
[322750480,1713241839417,-1128.29249054,0.00019484,2]
[322750482,1713241839426,-490.18474855,0.00019484,2]
[322750484,1713241839435,-155.41229221,0.00019484,2]
[322750486,1713241839444,-155.42944669,0.00019484,2]
[322750488,1713241839453,-155.2599321,0.00019484,2]
[322750490,1713241839462,-3529.32909372,0.00019484,2]
[322750492,1713241839471,-1401.91968617,0.00019484,2]
[322750494,1713241839480,-1557.76113112,0.00019484,2]
[322750496,1713241839489,-200.94153497,0.00019484,2]
[322750498,1713241839497,-362.68041687,0.00019484,2]
[322750500,1713241839506,-247.22261873,0.00019484,2]
[322750502,1713241839515,-727.67577498,0.00019485,2]
[322750504,1713241839524,-500.0,0.00019485,2]
[322750506,1713241839533,-381.52105488,0.00019485,2]
[322750508,1713241839543,-188.1344399,0.00019485,2]
[322750510,1713241839552,-500.0,0.00019485,2]
[322750512,1713241839561,-500.0,0.00019485,2]
[322750513,1713241839569,-500.0,0.00019485,2]
[322750514,1713241839579,-500.0,0.00019485,2]
[322750515,1713241839588,-500.0,0.00019485,2]
[322750516,1713241839597,-500.0,0.00019485,2]
[322750517,1713241839606,-500.0,0.00019485,2]
[322750518,1713241839615,-500.0,0.00019485,2]
[322750519,1713241839624,-500.0,0.00019485,2]
[322750520,1713241839633,-500.0,0.00019485,2]
[322750521,1713241839642,-500.0,0.00019485,2]
[322750522,1713241839654,-500.0,0.00019485,2]
[322750523,1713241839663,-500.0,0.00019485,2]
[322750524,1713241839672,-500.0,0.00019485,2]
[322750526,1713241839681,-500.0,0.00019485,2]
[322750527,1713241839690,-500.0,0.00019485,2]
[322750529,1713241839699,-500.0,0.00019485,2]
[322750531,1713241839708,-500.0,0.00019485,2]
[322750533,1713241839719,-500.0,0.00019485,2]
[322750535,1713241839728,-500.0,0.00019485,2]
[322750537,1713241839737,-500.0,0.00019485,2]
[322750540,1713241839747,-521.15270423,0.00019485,2]
[322750542,1713241839756,-500.0,0.00019485,2]
[322750570,1713241840006,-500.0,0.00019485,2]
[322750572,1713241840016,-500.0,0.00019485,2]
[322750574,1713241840025,-509.3787168,0.00019485,2]
[322750576,1713241840034,-381.24094436,0.00019485,2]
[322750578,1713241840043,-19194007.5870911,0.00019486,2]
[322750622,1713241840428,-386740.1854124,0.00019486,2]
[322750634,1713241840534,-2884.11827179,0.00019486,2]
[322750636,1713241840545,-1603.14387475,0.00019486,2]
[322750688,1713241843368,400.0,0.000179,6]
[322750689,1713241843381,-22977.81767667,0.00018332,2]
[322750690,1713241843390,-7645.35287317,0.00019486,2]
[322750691,1713241843429,-1230.05911604,0.00019486,2]
[322750692,1713241843469,-6056.56380384,0.00019486,2]
[322750693,1713241844103,-282.00508142,0.00019485,2]
[322750702,1713241846124,-900.0,0.00018,6]
[322750703,1713241846134,-384.27719142,0.00019391,2]
[322750704,1713241846144,-208.03232161,0.00019484,2]
[322750705,1713241846177,-21.90539409,0.00019484,2]
[322750706,1713241846185,-137.37025683,0.00019485,2]
[322750707,1713241846195,-143.85977624,0.00019485,2]
[322750708,1713241846226,-653.72741171,0.00019485,2]
[322750709,1713241846235,-347.41195837,0.00019485,2]
[322750710,1713241846245,-374.95104836,0.00019485,2]
[322750711,1713241846254,-3134.53758156,0.00019486,2]
[322750712,1713241846265,-9833.55481278,0.00019486,2]
[322750713,1713241846276,-12582.00000001,0.00019486,2]
[322750714,1713241846295,-314.54056255,0.00019486,2]
[322750715,1713241846315,-8524.31007988,0.00019486,2]
[322750716,1713241846326,-5895.72528088,0.00019486,2]
[322750718,1713241846822,296.84,0.00017217,2]
[322750719,1713241855882,215.35,0.00026118,120]
[322750720,1713241989980,2751.0,0.0001769,2]
[322750722,1713242095565,1401.91,0.0001787,2]
[322750723,1713242099872,1581.61199899,0.00018,2]
[322750724,1713242109006,170.52,0.00017728,2]
[322750725,1713242138174,4920.71,0.00017728,2]
[322750726,1713242149123,430.08,0.00017728,2]
[322750727,1713242168887,162.92,0.00017757,2]
[322750728,1713242209954,23900.0,0.00017897,2]
[322750729,1713242235580,2813.62,0.00017906,2]
[322750730,1713242388597,1776.14,0.000179,2]
[322750732,1713242408408,2564.28725932,0.00017999,2]
[322750733,1713242411254,500.0,0.00017898,2]
[322750734,1713242412529,281.99,0.00015988,2]
[322750735,1713242444998,848.5,0.00017893,2]
[322750736,1713242504056,209.25,0.00017861,2]
[322750737,1713242504259,209.25,0.0001791,2]
[322750738,1713242504704,209.25,0.00017959,2]
[322750739,1713242632387,655.93,0.00017522,2]
[322750740,1713242682641,362.90116211,0.00017999,2]
[322750741,1713242682695,210.40439846,0.00017999,2]
[322750742,1713242685320,155.0,0.00017999,2]
[322750743,1713242686488,200.82338812,0.00016438,2]
[322750744,1713242691009,215.83533507,0.00017999,2]
[322750745,1713242696278,155.0,0.00017999,2]
[322750746,1713242703497,155.0,0.00017999,2]
[322750747,1713242712329,3600.03,0.00017535,2]
[322750748,1713242714042,161.97180424,0.00017999,2]
[322750749,1713242725111,251.36502565,0.00017999,2]
[322750750,1713242727089,155.0,0.00017999,2]
[322750751,1713242727387,155.0,0.00017999,2]
[322750754,1713242729540,263.53476276,0.00017999,2]
[322750755,1713242731882,20000.0,0.00017,2]
[322750756,1713242735636,155.0,0.00017999,2]
[322750757,1713242740888,1478.80424151,0.00017999,2]
[322750758,1713242740928,538.77745672,0.00017999,2]
[322750759,1713242744131,4724.77975468,0.00017999,2]
[322750760,1713242747628,267.19125107,0.00017999,2]
[322750761,1713242750010,267.25,0.00017356,2]
[322750762,1713242769429,7951.35096071,0.00017908,2]
[322750763,1713242797074,2345.45,0.00017619,2]
[322750764,1713242802538,2893.87208694,0.00017999,2]
[322750765,1713242806202,-215.83533507,0.00018007,2]
[322750766,1713242806221,-155.0,0.00018007,2]
[322750767,1713242806241,-209.25,0.00018008,2]
[322750768,1713242806261,-213.13904033,0.00018014,2]
[322750769,1713242806280,-209.25,0.00018057,2]
[322750770,1713242806299,-250.46218932,0.00018097,2]
[322750771,1713242806320,-248.06878048,0.00018097,2]
[322750772,1713242809992,203.41,0.0001751,2]
[322750773,1713242813201,23900.0,0.0001751,2]
[322750774,1713242820033,315.5551211,0.00017998,2]
[322750775,1713242824262,2300.0,0.000178,6]
[322750776,1713242826368,4700.0,0.000179,6]
[322750780,1713242876797,323.18,0.00015357,2]
[322750781,1713242876855,323.18,0.00017621,2]
[322750782,1713242900918,7268.6457,0.00017908,2]
[322750783,1713242925610,8641.38,0.00017267,2]
[322750784,1713242954743,250.0,0.00017247,2]
[322750785,1713243011482,295.08,0.00017639,2]
[322750786,1713243011945,295.08,0.00017687,2]
[322750787,1713243012673,295.08,0.00017735,2]
[322750788,1713243013006,295.08,0.00017784,2]
[322750789,1713243013412,295.08,0.00017832,2]
[322750790,1713243013558,295.08,0.00017881,2]
[322750791,1713243013666,295.08,0.00017929,2]
[322750792,1713243014245,295.08,0.00017977,2]
[322750846,1713243032783,-295.08,0.00018026,2]
[322750847,1713243032793,-295.08,0.00018074,2]
[322750848,1713243032802,-17874.12539293,0.00018094,2]
[322750849,1713243032812,-410.04278861,0.00018095,2]
[322750850,1713243032821,-150.0,0.00018095,2]
[322750851,1713243032830,-217.58384574,0.00018096,2]
[322750852,1713243032839,-227.18428342,0.00018096,2]
[322750853,1713243032848,-157.16396495,0.00018096,2]
[322750854,1713243032858,-1673.69820169,0.00018096,2]
[322750855,1713243032868,-23374.9420489,0.00018097,2]
[322750856,1713243032877,-1000.0,0.00018098,2]
[322750857,1713243032886,-2784.42605343,0.00018098,2]
[322750858,1713243032895,-1414.38388056,0.00018098,5]
[322750859,1713243032905,-2234.1516494,0.00018098,2]
[322750860,1713243032914,-295.08,0.00018122,2]
[322750861,1713243032923,-446.97,0.00018155,2]
[322750862,1713243032932,-295.08,0.00018171,2]
[322750863,1713243032941,-482.65269929,0.00018183,2]
[322750864,1713243032950,-8395.75739105,0.00018192,2]
[322750865,1713243032962,-3476.32708069,0.00018192,2]
[322750867,1713243032973,-6206.2,0.00018192,2]
[322750870,1713243032996,-2686.46254783,0.00018192,2]
[322750873,1713243033008,-10569.72992466,0.00018192,2]
[322750875,1713243033019,-1629.76586371,0.00018192,2]
[322750879,1713243033054,-2001.76069057,0.00018192,2]
[322750882,1713243033065,-2120.29114441,0.00018192,2]
[322750885,1713243033082,-268.96933016,0.00018192,2]
[322750887,1713243033093,-1311.83228421,0.00018192,2]
[322750889,1713243033104,-18707.05368,0.00018192,2]
[322750892,1713243033122,-9601.527,0.00018192,2]
[322750894,1713243033134,-393.9,0.00018192,2]
[322750898,1713243033162,-1240.0,0.00018192,2]
[322750903,1713243033199,-2592.57686519,0.00018192,2]
[322750905,1713243033212,-4799.4,0.00018192,2]
[322750907,1713243033225,-3921.68974662,0.00018192,2]
[322750910,1713243033237,-13101.000009,0.00018192,2]
[322750912,1713243033248,-1183.16767892,0.00018192,2]
[322750936,1713243038189,-61913.00000005,0.00018192,2]
[322750937,1713243038411,-7103.53077201,0.00018192,2]
[322750938,1713243038423,-3106.58328,0.00018192,2]
[322750939,1713243038436,-379394.28337785,0.00018192,2]
[322750940,1713243038446,-684956.24942106,0.00018193,2]
[322750941,1713243038455,-231.23229162,0.00018194,2]